bitfinex/quotes_ETHUSD_20251127
["timestamp","ask_amount","ask_price","bid_price","bid_amount"]
[1764268952739,0.09,3039.0,3038.7,3.29084794]
[1764268952961,0.3061395,3039.1,3038.7,0.72559411]
[1764268953161,0.3063081,3039.0,3038.8,0.405504]
[1764268953375,0.40629644,3039.3,3038.8,0.405504]
[1764268953578,0.3063141,3039.2,3038.8,0.405504]
[1764268953872,0.3063141,3039.1,3038.9,3.29066438]
[1764268954085,0.40629644,3039.3,3038.9,3.69616838]
[1764268954086,0.3063141,3039.0,3038.9,3.69616838]
[1764268954442,0.3063141,3039.0,3038.8,3.29076678]
[1764268954647,0.86169644,3039.3,3038.8,0.72559411]
[1764268954871,0.1891,3038.9,3038.8,0.72559411]
[1764268955082,0.49559452,3038.9,3038.8,0.72559411]
[1764268955642,0.49559452,3038.9,3038.7,2.22653426]
[1764268955873,0.4518,3039.2,3038.8,0.72559411]
[1764268956179,0.4021036,3039.1,3038.8,0.72559411]
[1764268956383,0.3067036,3039.0,3038.8,0.72559411]
[1764268956585,0.3067036,3038.9,3038.8,0.72559411]
[1764268957461,0.3067036,3038.9,3038.5,0.03291097]
[1764268957462,0.3967036,3038.9,3038.5,0.03291097]
[1764268957672,0.3967036,3038.9,3038.4,0.001]
[1764268957673,0.3067036,3038.8,3038.4,0.001]
[1764268957979,0.3067036,3038.7,3038.4,0.001]
[1764268958148,0.3067036,3038.6,3038.4,0.001]
[1764268958350,0.3067036,3038.5,3038.4,0.001]
[1764268958949,0.3967036,3038.5,3038.4,0.001]
[1764268959149,0.3967036,3038.5,3038.4,0.880204]
[1764268959150,0.3067036,3038.5,3038.4,0.880204]
[1764268959666,0.3067036,3038.5,3038.4,1.374604]
[1764268960475,0.3067036,3038.5,3038.4,4.66580989]
[1764268961179,0.3067036,3038.5,3038.4,4.17140989]
[1764268961382,0.3996036,3038.5,3038.4,0.001]
[1764268961749,0.3996036,3038.5,3038.4,3.29220589]
[1764268962074,0.3067036,3038.5,3038.4,3.29220589]
[1764268962272,0.3996036,3038.5,3038.4,0.001]
[1764268962847,0.3067036,3038.5,3038.4,0.4662]
[1764268963263,0.3067036,3038.5,3038.4,0.9621]
[1764268963880,0.3067036,3038.5,3038.4,0.4662]
[1764268964652,0.3067036,3038.5,3038.4,3.75740589]
[1764268967276,0.7658036,3038.5,3038.4,3.29220589]
[1764268967478,0.7658036,3038.5,3038.4,0.001]
[1764268967677,0.7658036,3038.5,3038.4,3.29220589]
[1764268968283,0.7658036,3038.5,3038.4,0.001]
[1764268968471,0.8558036,3038.5,3038.4,0.001]
[1764268971081,0.3067036,3038.5,3038.4,0.001]
[1764268972061,0.3067036,3038.5,3038.4,3.75740589]
[1764268972280,0.3067036,3038.5,3038.4,4.25330589]
[1764268972481,0.3067036,3038.5,3038.4,4.65880989]
[1764268974289,0.3067036,3038.5,3038.4,4.75880989]
[1764268974653,0.3067036,3038.5,3038.4,3.69770989]
[1764268974854,0.3067036,3038.5,3038.4,4.16290989]
[1764268975084,0.3996036,3038.5,3038.4,0.001]
[1764268975463,0.8521036,3038.5,3038.4,0.001]
[1764268976958,0.3996036,3038.5,3038.4,0.001]
[1764268977384,0.8521036,3038.5,3038.4,0.001]
[1764268983231,0.3067036,3038.5,3038.4,0.4662]
[1764268983381,0.3067036,3038.5,3038.4,0.9621]
[1764268983914,0.3067036,3038.5,3038.4,1.28096343]
[1764268984205,0.30791502,3038.5,3038.4,1.28096343]
[1764268984408,0.30791502,3038.5,3038.4,4.57216932]
[1764268984612,0.30791502,3038.5,3038.4,6.01326743]
[1764268984775,0.002,3039.5,3038.6,0.1]
[1764268984975,0.307869,3039.4,3038.6,0.1]
[1764268985175,0.307869,3039.3,3038.8,0.405504]
[1764268985400,0.307869,3039.2,3039.0,0.405504]
[1764268985603,0.002,3039.5,3039.1,0.6783]
[1764268985846,0.30783755,3039.4,3038.7,0.405504]
[1764268986001,0.30783755,3039.3,3038.7,0.4959]
[1764268986325,0.30783755,3039.2,3038.8,0.405504]
[1764268986524,0.30783755,3039.1,3038.9,6.58132876]
[1764268986730,0.30783755,3039.0,3038.9,3.69616838]
[1764268987112,0.30783755,3039.0,3038.9,4.65726838]
[1764268987513,0.30783755,3039.0,3038.5,3.29102085]
[1764268987814,0.30783755,3038.9,3038.6,0.405504]
[1764268988018,0.30783755,3038.8,3038.6,0.405504]
[1764268988334,0.30783755,3038.7,3038.6,0.405504]
[1764268988635,0.30783755,3038.7,3038.5,0.405504]
[1764268988805,0.21,3039.3,3038.6,0.4652]
[1764268989008,0.30783113,3039.2,3038.6,0.4652]
[1764268989207,0.30783113,3039.1,3038.6,0.4652]
[1764268989511,0.21,3039.3,3038.4,6.58341178]
[1764268989512,0.30783113,3039.0,3038.4,6.58341178]
[1764268989722,0.30783113,3038.9,3038.4,7.07931178]
[1764268989943,0.4561,3039.3,3038.4,7.07931178]
[1764268989944,0.30783113,3038.8,3038.4,7.07931178]
[1764268990254,0.30783113,3038.7,3038.5,0.4537]
[1764268990452,0.30783113,3038.6,3038.5,3.74479758]
[1764268990811,0.30783113,3038.6,3038.5,4.24239758]
[1764268992214,0.30783113,3038.6,3038.4,3.39220221]
[1764268992215,0.39783113,3038.6,3038.4,0.001]
[1764268992519,0.0954,3038.9,3038.4,0.001]
[1764268992520,0.30783113,3038.5,3038.4,0.001]
[1764268992868,0.30783113,3038.5,3038.4,0.895704]
[1764268993072,0.30783113,3038.5,3038.4,0.9883]
[1764268993452,0.39783113,3038.5,3038.4,0.001]
[1764268994565,0.85323113,3038.5,3038.4,0.001]
[1764268994791,0.60783113,3038.5,3038.4,0.001]
[1764268995269,0.39783113,3038.5,3038.0,0.001]
[1764268995463,0.30783113,3038.4,3038.1,3.29151383]
[1764268995775,0.30783113,3038.3,3038.1,3.29151383]
[1764268995981,0.30783113,3038.2,3038.0,3.29260288]
[1764268996167,0.30783113,3038.1,3038.0,3.29260288]
[1764268996557,0.30783113,3038.1,3038.0,0.001]
[1764268996877,0.30783113,3038.1,3038.0,0.4991]
[1764268997380,0.76693113,3038.1,3038.0,0.001]
[1764268997744,0.85693113,3038.1,3038.0,0.001]
[1764268999775,0.95693113,3038.1,3038.0,0.001]
[1764268999978,1.40276784,3038.1,3038.0,0.001]
[1764269000749,4.69429873,3038.1,3038.0,0.001]
[1764269000957,4.69429873,3038.1,3036.4,0.4892]
[1764269000958,0.72559411,3038.0,3036.4,0.4892]
[1764269001148,0.1,3037.6,3036.6,3.29749623]
[1764269001344,0.1,3037.6,3036.4,3.78247809]
[1764269001345,0.51783113,3037.5,3036.7,0.00280775]
[1764269001578,0.1,3037.3,3036.5,0.001]
[1764269001763,0.30783113,3037.2,3036.5,3.29424335]
[1764269001951,0.30783113,3037.1,3036.5,3.29424335]
[1764269002152,0.2344,3036.6,3036.5,0.001]
[1764269002354,0.30783113,3036.6,3036.5,3.29426527]
[1764269002558,0.30783113,3036.6,3036.5,3.79236527]
[1764269003458,0.30783113,3036.6,3036.5,0.001]
[1764269003975,0.30783113,3036.6,3036.5,3.79236527]
[1764269004370,0.30783113,3036.6,3036.5,3.29426527]
[1764269004881,0.30783113,3036.6,3036.5,0.001]
[1764269006382,0.30783113,3036.9,3036.5,0.9883]
[1764269006572,0.30783113,3036.8,3036.5,1.02123265]
[1764269006773,0.30783113,3036.7,3036.6,3.78235682]
[1764269006971,0.30783113,3037.2,3036.7,0.4981]
[1764269007183,0.30783113,3037.1,3036.7,0.4981]
[1764269007472,0.30783113,3037.0,3036.7,0.4981]
[1764269007662,0.30783113,3036.9,3036.7,0.4981]
[1764269007884,0.30783113,3036.8,3036.7,0.4981]
[1764269008067,0.30783113,3037.2,3036.7,0.4981]
[1764269008272,0.30783113,3037.1,3036.7,0.4981]
[1764269008469,0.30783113,3037.0,3036.7,0.4981]
[1764269008680,0.30783113,3036.9,3036.7,0.4981]
[1764269008872,0.30783113,3036.8,3036.7,3.79114837]
[1764269009074,0.30783113,3037.2,3036.7,7.08419674]
[1764269009296,0.30783113,3037.1,3036.7,7.08419674]
[1764269009502,0.21,3037.3,3036.7,7.08419674]
[1764269009503,0.30783113,3037.0,3036.7,7.08419674]
[1764269009707,0.30783113,3036.9,3036.7,7.08419674]
[1764269010000,0.30783113,3037.2,3036.7,7.08419674]
[1764269010342,0.30783113,3037.1,3036.7,7.08419674]
[1764269010600,0.30783113,3037.0,3036.7,7.08419674]
[1764269010903,0.30783113,3036.9,3036.7,7.08419674]
[1764269011124,0.30783113,3037.2,3036.7,3.79114837]
[1764269011287,0.09,3036.8,3036.6,3.29310322]
[1764269011479,0.30783113,3037.1,3036.5,0.001]
[1764269011480,0.30783113,3037.0,3036.5,0.001]
[1764269011783,0.4591,3036.6,3036.5,3.29426527]
[1764269012101,0.4591,3036.6,3036.5,0.001]
[1764269012302,0.4591,3036.6,3036.5,3.29426527]
[1764269012611,0.72559411,3037.8,3036.5,3.29426527]
[1764269012612,0.1281,3038.9,3037.6,0.405504]
[1764269012917,0.30585435,3039.2,3038.3,0.405504]
[1764269013083,0.30585435,3039.1,3038.4,6.58241178]
[1764269013283,0.30585435,3039.0,3038.4,6.58241178]
[1764269013510,0.30585435,3039.2,3038.4,9.87361767]
[1764269013709,0.30585435,3039.1,3038.5,0.4892]
[1764269014020,0.30585435,3039.2,3038.5,0.4892]
[1764269014213,0.30585435,3039.1,3038.5,0.4892]
[1764269014412,0.30585435,3039.2,3038.5,0.4892]
[1764269014619,0.30585435,3039.1,3038.5,0.4892]
[1764269014807,0.30585435,3039.2,3038.5,0.4892]
[1764269015012,0.30585435,3039.1,3038.6,6.58197854]
[1764269015205,0.30585435,3039.2,3038.6,6.58197854]
[1764269015420,0.0954,3039.3,3038.6,6.58197854]
[1764269015421,0.30585435,3039.1,3038.6,6.58197854]
[1764269015620,0.30585435,3039.0,3038.6,6.58197854]
[1764269015825,0.30585435,3039.2,3038.6,6.58197854]
[1764269016028,0.30585435,3039.1,3038.6,6.58197854]
[1764269016217,0.30585435,3039.0,3038.6,6.58197854]
[1764269016415,0.30585435,3039.2,3038.6,6.58197854]
[1764269016737,0.30585435,3039.1,3038.6,6.58197854]
[1764269016916,0.30585435,3039.0,3038.6,7.77829639]
[1764269017117,0.0954,3039.3,3038.6,7.77829639]
[1764269017118,0.30585435,3039.2,3038.6,3.29098927]
[1764269017434,0.30585435,3039.1,3038.6,6.58197854]
[1764269017737,0.30585435,3039.0,3038.6,6.58197854]
[1764269017907,0.30585435,3038.9,3038.6,6.58197854]
[1764269018106,0.21,3038.9,3038.6,6.58197854]
[1764269018709,0.51585435,3038.9,3038.6,6.58197854]
[1764269018908,0.30585435,3038.8,3038.6,6.58197854]
[1764269019111,0.30585435,3038.8,3038.6,0.4892]
[1764269019340,0.30585435,3038.8,3038.7,0.4981]
[1764269019535,0.21,3038.9,3038.7,0.4981]
[1764269019735,0.002,3039.1,3038.8,0.4981]
[1764269019736,0.30585435,3039.0,3038.8,0.4981]
[1764269019931,0.30585435,3038.9,3038.8,0.9873]
[1764269020236,0.30585435,3039.0,3038.8,0.9873]
[1764269020440,0.30585435,3038.9,3038.8,0.4981]
[1764269020644,0.30585435,3039.0,3038.9,0.4698]
[1764269021013,0.30585435,3039.0,3038.9,4.22446438]
[1764269021731,0.30785435,3039.1,3038.9,4.22446438]
[1764269022052,0.30785435,3039.1,3038.9,7.04532876]
[1764269022612,0.09,3039.0,3038.4,6.58241178]
[1764269022816,0.39585435,3039.0,3038.4,6.58241178]
[1764269023045,0.30585435,3038.9,3038.4,6.58241178]
[1764269023623,0.30797021,3039.1,3038.4,9.87361767]
[1764269023947,0.30797021,3039.1,3038.4,7.05221178]
[1764269024251,0.30797021,3039.1,3038.4,10.34341767]
[1764269024422,0.30797021,3039.1,3039.0,0.464]
[1764269024617,0.002,3039.1,3038.5,0.4698]
[1764269024823,0.002,3039.1,3038.4,7.05221178]
[1764269025129,0.30797021,3039.1,3038.4,6.58241178]
[1764269025333,0.002,3039.1,3038.4,6.58241178]
[1764269025650,0.30797021,3039.1,3038.4,10.34341767]
[1764269025857,0.002,3039.1,3038.4,10.34341767]
[1764269026021,0.30797021,3039.1,3038.4,10.34341767]
[1764269026222,0.4591,3039.0,3038.4,6.58241178]
[1764269026443,0.76507021,3039.0,3038.4,6.58241178]
[1764269026660,0.43407021,3038.9,3038.4,6.58241178]
[1764269027523,0.43407021,3038.9,3038.3,6.58262844]
[1764269030669,0.4591,3038.8,3038.3,6.58262844]
[1764269030874,0.09,3038.4,3038.3,3.29131422]
[1764269031459,0.51577245,3038.7,3038.1,6.58306178]
[1764269032167,0.97487245,3038.7,3038.1,6.58306178]
[1764269032368,0.30577245,3038.6,3038.1,6.58306178]
[1764269033161,0.21,3038.7,3038.1,3.29153089]
[1764269033468,0.30577245,3038.6,3038.1,3.29153089]
[1764269033655,0.30577245,3038.8,3038.1,1.35930584]
[1764269033857,0.51577245,3038.7,3038.5,0.464]
[1764269034180,0.30577245,3038.6,3038.5,0.464]
[1764269034682,0.21,3038.7,3038.5,0.464]
[1764269034972,0.21,3038.7,3038.2,0.50271422]
[1764269034973,0.30577245,3038.7,3038.6,0.464]
[1764269035263,0.21,3038.7,3038.6,0.464]
[1764269035470,0.51577245,3038.7,3038.6,0.464]
[1764269035669,0.51577245,3038.7,3038.6,3.75498927]
[1764269035881,0.30577245,3038.7,3038.6,3.75498927]
[1764269036056,0.21,3038.9,3038.6,7.51577854]
[1764269036251,0.30577245,3038.8,3038.7,0.4698]
[1764269036642,0.30577245,3038.8,3038.7,0.9338]
[1764269037745,0.39577245,3038.8,3038.7,3.29088096]
[1764269037950,0.30577245,3038.8,3038.7,3.75488096]
[1764269038885,0.30577245,3038.8,3038.7,3.29088096]
[1764269039382,0.39577245,3038.8,3038.7,3.29088096]
[1764269039679,0.30577245,3038.8,3038.7,3.29088096]
[1764269039879,0.39617245,3038.8,3038.4,9.87358335]
[1764269040055,0.30577245,3038.7,3038.4,9.87358335]
[1764269040254,0.0046,3038.5,3038.4,6.58237746]
[1764269040459,0.30577245,3038.5,3038.4,3.29117157]
[1764269040685,0.30577245,3038.5,3038.4,3.75517157]
[1764269041280,0.30577245,3038.5,3038.4,4.22497157]
[1764269042285,0.30577245,3038.5,3038.4,3.78808362]
[1764269042480,0.30577245,3038.5,3038.4,4.25788362]
[1764269045588,0.30577245,3038.5,3038.4,3.32408362]
[1764269046488,0.39577245,3038.5,3038.4,3.29117157]
[1764269047064,0.39851136,3038.5,3038.4,3.29117157]
[1764269047302,0.30851136,3038.5,3038.4,4.63047557]
[1764269047462,0.30851136,3038.5,3038.4,4.66338762]
[1764269049593,0.30851136,3038.5,3038.4,3.32408362]
[1764269049786,0.30851136,3038.5,3038.4,3.75517157]
[1764269050094,0.30851136,3038.5,3038.4,4.24598362]
[1764269053238,0.30851136,3038.5,3038.4,5.64628007]
[1764269053837,0.30851136,3038.5,3038.4,4.65148762]
[1764269056438,0.30851136,3038.5,3038.4,6.87802188]
[1764269056752,0.30851136,3038.5,3038.4,6.84510983]
[1764269056940,0.30852517,3038.5,3038.4,6.38720983]
[1764269057140,0.39852517,3038.5,3038.4,3.29117157]
[1764269057838,0.85392517,3038.5,3038.4,3.29117157]
[1764269058008,0.85392517,3038.5,3038.0,3.29260397]
[1764269058334,0.4591,3038.1,3038.0,0.001]
[1764269058520,0.97762517,3038.1,3038.0,0.001]
[1764269058724,1.06762517,3038.1,3038.0,3.29263923]
[1764269058906,1.06762517,3038.1,3038.0,0.001]
[1764269058907,0.85762517,3038.1,3038.0,0.001]
[1764269059109,1.06762517,3038.1,3038.0,0.001]
[1764269061562,1.16762517,3038.1,3038.0,0.001]
[1764269063260,0.85762517,3038.1,3038.0,0.001]
[1764269063762,1.06762517,3038.1,3038.0,0.001]
[1764269064763,1.2569471,3038.1,3038.0,0.001]
[1764269064963,1.3569471,3038.1,3038.0,0.001]
[1764269065134,1.1469471,3038.1,3038.0,0.001]
[1764269065330,1.0469471,3038.1,3038.0,0.001]
[1764269065535,1.06762517,3038.1,3038.0,0.001]
[1764269067066,0.76762517,3038.1,3038.0,0.001]
[1764269067235,0.97762517,3038.1,3038.0,0.001]
[1764269067543,1.06762517,3038.1,3038.0,0.001]
[1764269067739,0.97762517,3038.1,3038.0,0.001]
[1764269068497,1.06762517,3038.1,3038.0,0.001]
[1764269068867,0.97762517,3038.1,3038.0,0.001]
[1764269069662,1.06762517,3038.1,3038.0,0.001]
[1764269072081,1.16762517,3038.1,3038.0,0.001]
[1764269072276,0.97762517,3038.1,3038.0,0.001]
[1764269073793,0.97962517,3038.1,3038.0,0.001]
[1764269074163,1.06962517,3038.1,3038.0,0.001]
[1764269075196,0.76962517,3038.1,3038.0,0.001]
[1764269075367,0.97962517,3038.1,3038.0,0.001]
[1764269076809,0.31052517,3038.1,3038.0,0.911]
[1764269078103,0.31052517,3038.1,3038.0,4.20263923]
[1764269078304,0.31052517,3038.1,3038.0,3.29263923]
[1764269078512,0.31052517,3038.1,3038.0,4.86107735]
[1764269080191,0.31052517,3038.1,3038.0,3.74553923]
[1764269080410,0.31052517,3038.1,3038.0,3.29263923]
[1764269080978,0.31052517,3038.1,3038.0,3.74853923]
[1764269082510,0.40052517,3038.1,3038.0,3.29263923]
[1764269082921,3.60380493,3038.1,3038.0,3.29263923]
[1764269083330,0.40052517,3038.1,3038.0,3.29263923]
[1764269084534,0.40052517,3038.1,3038.0,0.001]
[1764269084535,3.60380493,3038.1,3038.0,0.001]
[1764269084735,4.44058542,3038.1,3038.0,0.001]
[1764269085538,1.23730566,3038.1,3038.0,0.001]
[1764269085833,4.05920493,3038.1,3038.0,0.001]
[1764269086810,4.15920493,3038.1,3038.0,0.001]
[1764269087115,4.05920493,3038.1,3038.0,0.001]
[1764269087936,3.75067976,3038.1,3038.0,0.001]
[1764269089209,3.29527976,3038.1,3038.0,0.001]
[1764269089403,3.70134774,3038.1,3038.0,0.001]
[1764269090234,4.00934956,3038.1,3038.0,0.001]
[1764269090665,3.82134774,3038.1,3038.0,0.001]
[1764269090833,3.91134774,3038.1,3038.0,0.001]
[1764269091147,4.2193314,3038.1,3038.0,0.001]
[1764269093154,7.97801116,3038.1,3038.0,0.001]
[1764269093356,4.7747314,3038.1,3038.0,0.001]
[1764269093551,4.3784314,3038.1,3038.0,0.001]
[1764269093751,4.5884314,3038.1,3038.0,0.001]
[1764269094053,4.6784314,3038.1,3038.0,0.001]
[1764269094769,4.7784314,3038.1,3038.0,0.001]
[1764269096155,5.50402551,3038.1,3038.0,0.001]
[1764269096454,8.70730527,3038.1,3038.0,0.001]
[1764269096660,5.50402551,3038.1,3038.0,0.001]
[1764269100388,11.99883616,3038.1,3038.0,0.001]
[1764269100552,5.50402551,3038.1,3038.0,0.001]
[1764269100753,1.90074575,3038.1,3038.0,0.001]
[1764269100961,1.90074575,3038.1,3038.0,0.9216]
[1764269100962,0.30998366,3038.1,3038.0,0.9216]
[1764269101158,0.51998366,3038.1,3038.0,0.9216]
[1764269101386,0.51998366,3038.1,3038.0,0.001]
[1764269101682,0.51998366,3038.1,3038.0,0.4569]
[1764269101899,0.60998366,3038.1,3038.0,0.001]
[1764269102101,1.13685,3038.1,3038.0,0.001]
[1764269102400,0.94685,3038.1,3038.0,0.4569]
[1764269102969,0.73685,3038.1,3038.0,0.4569]
[1764269103167,1.04055,3038.1,3038.0,0.001]
[1764269104282,1.14055,3038.1,3038.0,0.001]
[1764269104494,2.31794411,3038.1,3038.0,0.001]
[1764269104701,1.86614411,3038.1,3038.0,0.001]
[1764269105512,0.51998366,3038.1,3038.0,0.9216]
[1764269105879,0.97908366,3038.1,3038.0,0.001]
[1764269106976,1.79467777,3038.1,3038.0,0.001]
[1764269107176,1.89467777,3038.1,3038.0,0.001]
[1764269107394,2.40447352,3038.1,3038.0,0.001]
[1764269108685,1.75537352,3038.1,3038.0,0.001]
[1764269108883,2.21077352,3038.1,3038.0,0.001]
[1764269109408,2.40447352,3038.1,3038.0,0.001]
[1764269109709,2.31077352,3038.1,3038.0,0.001]
[1764269110012,2.21077352,3038.1,3038.0,0.001]
[1764269111609,2.21077352,3038.1,3038.0,0.4566]
[1764269111610,1.54537352,3038.1,3038.0,0.4566]
[1764269111808,1.75537352,3038.1,3038.0,0.4566]
[1764269111982,1.75537352,3038.1,3038.0,0.9529]
[1764269111983,0.81977941,3038.1,3038.0,0.9529]
[1764269112182,0.51998366,3038.1,3038.0,0.9529]
[1764269112379,0.30998366,3038.1,3038.0,4.24453923]
[1764269114714,0.39998366,3038.1,3038.0,3.29263923]
[1764269114883,0.78131,3038.1,3038.0,3.29263923]
[1764269115490,0.69131,3038.1,3038.0,4.24453923]
[1764269115791,0.30998366,3038.1,3038.0,4.24453923]
[1764269116299,0.51998366,3038.1,3038.0,4.24453923]
[1764269120646,0.51898366,3038.1,3038.0,4.24453923]
[1764269125027,0.30998366,3038.1,3038.0,4.24453923]
[1764269125204,0.51898366,3038.1,3038.0,4.24453923]
[1764269134331,0.51898366,3038.1,3038.0,4.27745562]
[1764269134541,0.51898366,3038.1,3038.0,4.24453923]
[1764269134910,0.30998366,3038.1,3038.0,3.74823923]
[1764269135236,0.51898366,3038.1,3038.0,4.24453923]
[1764269135831,0.51898366,3038.1,3038.0,3.74823923]
[1764269136531,0.30998366,3038.1,3038.0,3.74823923]
[1764269136714,0.51898366,3038.1,3038.0,4.24453923]
[1764269137123,0.51898366,3038.1,3038.0,3.29263923]
[1764269137638,0.51898366,3038.1,3038.0,4.24453923]
[1764269141710,0.30998366,3038.1,3038.0,4.99816748]
[1764269142047,0.51898366,3038.1,3038.0,5.03108387]
[1764269144959,0.60898366,3038.1,3038.0,0.001]
[1764269147842,0.51898366,3038.1,3038.0,0.001]
[1764269148049,0.51898366,3038.1,3038.0,0.4778]
[1764269148723,0.60898366,3038.1,3038.0,0.001]
[1764269148950,1.06438366,3038.1,3038.0,0.001]
[1764269149149,1.48330409,3038.1,3038.0,0.001]
[1764269149531,1.02790409,3038.1,3038.0,0.001]
[1764269150152,1.58330409,3038.1,3038.0,0.001]
[1764269150948,1.12790409,3038.1,3038.0,0.001]
[1764269151122,1.02790409,3038.1,3038.0,0.001]
[1764269151845,0.93790409,3038.1,3038.0,0.4778]
[1764269152021,0.97808366,3038.1,3038.0,0.001]
[1764269153547,0.51898366,3038.1,3038.0,0.4778]
[1764269153851,0.51898366,3038.1,3038.0,0.001]
[1764269155367,0.51898366,3038.1,3038.0,0.4778]
[1764269157460,0.51898366,3038.1,3038.0,3.76943923]
[1764269158858,0.30998366,3038.1,3038.0,3.76943923]
[1764269159059,0.51898366,3038.1,3038.0,3.76943923]
[1764269161551,0.30998366,3038.1,3038.0,3.76943923]
[1764269161754,0.30998366,3038.1,3038.0,4.94755724]
[1764269161962,0.51898366,3038.1,3038.0,4.94755724]
[1764269164077,0.51898366,3038.1,3038.0,4.24143923]
[1764269166047,0.51898366,3038.1,3038.0,3.76943923]
[1764269166247,0.51898366,3038.1,3038.0,4.24143923]
[1764269167959,0.51898366,3038.1,3038.0,4.27435562]
[1764269168973,0.51898366,3038.1,3038.0,4.24143923]
[1764269169474,0.30998366,3038.1,3038.0,5.02767363]
[1764269169697,0.30998366,3038.1,3038.0,4.27435562]
[1764269170052,0.51898366,3038.1,3038.0,4.27435562]
[1764269170447,0.97808366,3038.1,3038.0,3.29263923]
[1764269170856,0.51898366,3038.1,3038.0,3.78523923]
[1764269171550,0.51898366,3038.1,3038.0,4.24293923]
[1764269172163,0.51898366,3038.1,3038.0,4.27585562]
[1764269172364,0.51898366,3038.1,3038.0,4.24293923]
[1764269173052,0.51898366,3038.1,3038.0,4.27585562]
[1764269173681,0.30998366,3038.1,3038.0,5.53811927]
[1764269175183,0.30998366,3038.1,3038.0,6.26371338]
[1764269175880,0.30998366,3038.1,3038.0,6.16371338]
[1764269176382,0.30998366,3038.1,3038.0,6.26371338]
[1764269176591,0.30998366,3038.1,3038.0,6.16371338]
[1764269176791,0.30998366,3038.1,3038.0,6.26371338]
[1764269177857,0.002,3038.5,3038.3,0.405504]
[1764269178181,0.002,3038.5,3038.4,5.02981872]
[1764269178482,0.002,3038.5,3038.4,9.3058978]
[1764269179194,0.002,3038.5,3038.4,9.2058978]
[1764269179395,2.23141531,3041.0,3039.5,3.53032461]
[1764269179599,1.77231531,3041.0,3040.1,0.1813]
[1764269179756,0.5591,3040.8,3039.6,0.1813]
[1764269180063,0.18677153,3040.9,3039.7,0.405504]
[1764269180272,0.39577153,3040.9,3040.0,9.86842104]
[1764269180502,0.39577153,3040.9,3040.0,13.15789472]
[1764269180669,0.67590868,3040.8,3040.0,6.57894736]
[1764269180860,0.1,3040.7,3040.0,6.57894736]
[1764269181060,0.5591,3040.7,3040.0,6.57894736]
[1764269181573,0.09,3040.1,3040.0,3.28947368]
[1764269182484,0.09,3040.1,3039.5,0.4577]
[1764269182681,0.4591,3040.6,3039.5,0.405504]
[1764269182985,0.4591,3040.6,3039.6,0.4577]
[1764269184298,0.47901491,3040.6,3039.7,0.405504]
[1764269184458,0.209,3040.5,3039.8,9.86907033]
[1764269184655,0.209,3040.5,3039.8,10.32677033]
[1764269184960,0.209,3040.5,3039.9,0.4577]
[1764269185394,0.209,3040.5,3039.8,6.57938022]
[1764269185560,0.209,3040.5,3039.8,10.32677033]
[1764269185891,0.5663,3039.9,3039.1,6.58085984]
[1764269186077,0.5663,3039.9,3039.2,0.03290339]
[1764269186078,0.67921206,3039.8,3039.2,0.03290339]
[1764269186257,1.13831206,3039.8,3039.3,0.03290231]
[1764269186460,0.57921206,3039.8,3039.3,3.2902313]
[1764269186663,0.4591,3039.7,3039.3,3.2902313]
[1764269186957,0.0891,3039.4,3039.3,3.2902313]
[1764269188659,0.0891,3039.4,3038.8,6.58154534]
[1764269188865,0.0046,3039.2,3038.8,6.58154534]
[1764269189471,0.4591,3039.6,3038.9,0.49060664]
[1764269189785,0.57811206,3039.8,3038.9,0.49060664]
[1764269189786,0.51529087,3039.5,3038.9,0.49060664]
[1764269189990,0.30629087,3039.4,3038.9,0.4577]
[1764269190191,0.30629087,3039.3,3039.0,0.03290556]
[1764269190375,0.30629087,3039.2,3039.0,0.03290556]
[1764269190574,0.209,3039.5,3039.0,0.03290556]
[1764269190575,0.30629087,3039.1,3039.0,0.03290556]
[1764269190780,0.30629087,3039.1,3039.0,3.32346166]
[1764269190967,0.30629087,3039.1,3039.0,3.81606166]
[1764269191185,0.30629087,3039.1,3039.0,4.27376166]
[1764269192181,0.39649087,3039.1,3039.0,3.2905561]
[1764269192377,0.30629087,3039.1,3039.0,3.2905561]
[1764269192783,0.30629087,3039.1,3039.0,3.7831561]
[1764269193782,0.30629087,3039.1,3039.0,3.2905561]
[1764269193983,0.39649087,3039.1,3039.0,3.2905561]
[1764269194220,0.85189087,3039.1,3039.0,3.2905561]
[1764269195023,0.80196986,3039.1,3038.9,0.001]
[1764269195235,0.76999087,3039.0,3038.9,0.001]
[1764269195680,0.86999087,3039.0,3038.9,0.001]
[1764269196518,1.07899087,3039.0,3038.9,0.001]
[1764269197185,4.36954697,3039.0,3038.9,0.001]
[1764269197796,5.09514108,3039.0,3038.9,0.001]
[1764269197997,6.25399184,3039.0,3038.9,0.001]
[1764269198609,2.96343574,3039.0,3038.9,0.001]
[1764269199315,6.25399184,3039.0,3038.9,0.001]
[1764269199742,2.29533574,3039.0,3038.9,0.001]
[1764269199938,1.70458498,3039.0,3038.9,0.001]
[1764269202809,4.99514108,3039.0,3038.9,0.001]
[1764269203133,0.1,3038.6,3038.5,0.001]
[1764269203340,4.420484,3038.6,3038.5,0.001]
[1764269203534,5.3344624,3038.6,3038.5,0.001]
[1764269203901,8.62545167,3038.6,3038.5,0.001]
[1764269204451,8.75731799,3038.6,3038.5,0.001]
[1764269205508,8.96631799,3038.6,3038.5,0.001]
[1764269206639,8.96631799,3038.6,3038.2,0.001]
[1764269206640,0.72559411,3038.5,3038.2,0.001]
[1764269206839,0.72559411,3038.5,3037.6,0.001]
[1764269206840,0.1,3037.7,3037.6,0.001]
[1764269207053,4.549784,3037.7,3037.6,0.001]
[1764269207220,0.72559411,3037.6,3037.3,0.001]
[1764269207533,4.11259313,3037.4,3037.3,0.001]
[1764269207699,4.418884,3037.4,3037.3,0.001]
[1764269207904,5.3657824,3037.4,3037.3,0.001]
[1764269208104,8.65807185,3037.4,3037.3,0.001]
[1764269208535,0.72559411,3037.3,3036.5,0.001]
[1764269208838,0.19,3036.6,3036.5,0.001]
[1764269209016,0.70529087,3036.6,3036.5,0.001]
[1764269209359,1.16069087,3036.6,3036.2,0.001]
[1764269209501,5.08160335,3036.3,3036.2,0.001]
[1764269209830,6.06259364,3036.3,3036.2,0.001]
[1764269210152,5.76446659,3036.3,3036.2,0.001]
[1764269210454,5.76446659,3036.3,3035.8,0.001]